bitfinex-derivatives/quotes_ETHF0:USTF0_20241022
["timestamp","ask_amount","ask_price","bid_price","bid_amount"]
[1729616180930,6.5801,2610.4,2610.0,0.38335]
[1729616181121,6.9634,2610.4,2610.0,0.38335]
[1729616181423,0.38331,2610.3,2610.0,0.38335]
[1729616183229,3.2078,2610.4,2610.1,2.99]
[1729616183527,3.2078,2610.4,2610.3,0.3833]
[1729616183923,3.2078,2610.4,2610.3,2.0973]
[1729616187233,3.2078,2610.4,2610.3,1.714]
[1729616187539,3.59089,2611.8,2611.3,0.38315]
[1729616187735,1.776,2611.8,2611.6,2.99]
[1729616188534,1.776,2611.8,2611.6,3.37311]
[1729616188932,1.776,2611.8,2611.6,2.99]
[1729616189132,1.776,2611.8,2611.5,0.38312]
[1729616189431,2.15909,2611.8,2611.4,3.37313]
[1729616189637,2.1695,2611.7,2611.4,2.99]
[1729616189932,5.6152,2611.7,2610.9,6.1978]
[1729616190138,0.38313,2611.5,2611.1,0.38318]
[1729616190532,0.38314,2611.4,2611.1,0.38318]
[1729616190734,1.674,2611.3,2611.1,0.38318]
[1729616191244,1.674,2611.3,2611.0,1.72019]
[1729616191538,1.674,2611.3,2611.1,0.38318]
[1729616192135,1.674,2611.3,2611.1,0.38317]
[1729616192547,1.674,2611.3,2611.0,1.72019]
[1729616192733,1.674,2611.3,2611.1,0.38318]
[1729616193335,1.674,2611.3,2611.0,1.337]
[1729616193539,1.674,2611.3,2611.0,0.38319]
[1729616193837,1.674,2611.3,2611.1,0.38319]
[1729616194646,1.674,2611.3,2611.0,0.3832]
[1729616194833,1.674,2611.3,2611.1,3.37318]
[1729616197043,1.674,2611.3,2611.1,2.99]
[1729616197243,1.674,2611.3,2611.1,3.37318]
[1729616199139,1.674,2611.3,2611.2,0.38317]
[1729616200945,2.15921333,2611.3,2611.2,0.38317]
[1729616208351,2.15921333,2611.3,2611.1,2.99]
[1729616208548,2.24411333,2611.2,2611.1,3.37318]
[1729616209047,1.7589,2611.2,2611.1,3.37318]
[1729616211139,1.7589,2611.2,2611.1,2.99]
[1729616213251,3.4333,2611.2,2611.1,2.99]
[1729616214053,3.4333,2611.2,2611.1,3.37319]
[1729616214253,3.4333,2611.2,2611.1,2.99]
[1729616215359,3.81647,2611.2,2611.1,2.99]
[1729616219456,3.4333,2611.2,2610.9,2.99]
[1729616219661,0.38321,2611.0,2610.7,4.864]
[1729616219864,2.17592,2610.9,2610.7,5.24723]
[1729616220257,2.17592,2610.9,2610.7,3.91423]
[1729616220564,1.7927,2610.9,2610.7,3.91423]
[1729616220956,2.17592,2610.9,2610.7,3.531]
[1729616221257,2.17592,2610.9,2610.7,1.7574]
[1729616221757,1.7927,2610.9,2610.6,4.323]
[1729616222057,2.08124,2610.8,2610.6,4.323]
[1729616222570,1.698,2610.8,2610.5,1.455]
[1729616222762,1.698,2610.8,2610.5,1.333]
[1729616223063,1.698,2610.8,2610.4,7.876]
[1729616223064,0.38327,2610.5,2610.4,6.1978]
[1729616223362,0.38327,2610.5,2610.4,2.99]
[1729616223560,2.45752,2610.7,2610.0,1.6535]
[1729616223861,1.8568,2610.4,2610.1,4.323]
[1729616224158,1.8568,2610.4,2610.1,4.70633]
[1729616225159,0.38333,2610.2,2609.8,1.93167]
[1729616225366,1.657,2610.1,2609.7,1.333]
[1729616225553,1.657,2610.1,2609.6,6.4096]
[1729616225554,3.1564,2610.1,2609.6,6.4096]
[1729616225755,3.1564,2610.1,2609.6,4.5408]
[1729616225963,0.38338,2609.8,2609.6,4.5408]
[1729616226156,4.11475,2610.1,2609.6,4.5408]
[1729616226353,0.38337,2609.9,2609.6,4.5408]
[1729616226559,1.5295,2609.8,2609.6,4.5408]
[1729616226764,0.38339,2609.7,2609.6,4.5408]
[1729616227063,1.91288,2609.8,2609.6,3.2078]
[1729616227265,0.38339,2609.7,2609.6,3.2078]
[1729616227460,1.5295,2609.8,2609.6,3.2078]
[1729616227660,0.38339,2609.7,2609.6,3.2078]
[1729616228560,0.38342,2609.5,2609.3,1.333]
[1729616228760,0.38342,2609.5,2609.2,6.58125]
[1729616228761,0.38344,2609.4,2609.2,3.2078]
[1729616228960,1.5857,2609.6,2609.2,3.2078]
[1729616228961,1.4845,2609.3,2609.2,3.2078]
[1729616229160,1.4845,2609.3,2609.2,3.59127]
[1729616229365,1.4845,2609.3,2609.2,3.2078]
[1729616230075,1.4845,2609.3,2609.2,3.59127]
[1729616230267,1.4845,2609.3,2609.2,6.1978]
[1729616231064,1.4845,2609.3,2609.2,6.58127]
[1729616231267,1.4845,2609.3,2609.2,6.1978]
[1729616231665,1.4845,2609.3,2609.2,6.58127]
[1729616232866,1.4845,2609.3,2609.2,6.1978]
[1729616233064,1.4845,2609.3,2609.2,6.58127]
[1729616235266,1.4845,2609.3,2609.1,1.333]
[1729616235267,6.3602,2609.6,2609.1,1.333]
[1729616235566,1.542,2609.2,2609.1,1.333]
[1729616235769,1.542,2609.2,2609.0,0.38349]
[1729616235964,1.542,2609.2,2609.0,1.71649]
[1729616236165,1.542,2609.2,2609.1,0.38348]
[1729616236472,1.542,2609.2,2609.0,1.71649]
[1729616236667,1.542,2609.2,2609.1,0.38348]
[1729616237581,1.542,2609.2,2609.0,1.333]
[1729616237773,1.542,2609.2,2609.0,1.71648]
[1729616237977,1.542,2609.2,2609.1,0.38348]
[1729616239379,6.3602,2609.6,2609.0,4.323]
[1729616239582,3.2078,2609.9,2609.4,2.99]
[1729616239873,3.2078,2609.9,2609.6,0.3834]
[1729616239874,4.7282,2609.9,2609.6,0.3834]
[1729616240078,4.7282,2609.9,2609.7,41.18339]
[1729616240379,4.7282,2609.9,2609.8,0.38338]
[1729616241073,4.7282,2609.9,2609.5,3.1159]
[1729616241278,5.11157,2609.9,2609.6,0.38341]
[1729616241772,5.11157,2609.9,2609.4,6.1978]
[1729616241773,0.38341,2609.6,2609.4,3.59123]
[1729616241981,0.3834,2609.7,2609.4,4.92523]
[1729616242468,0.3834,2609.7,2609.4,4.5418]
[1729616242673,0.3834,2609.7,2609.4,4.92522]
[1729616242876,4.7282,2609.9,2609.4,4.5418]
[1729616243075,1.92479,2609.8,2609.5,0.38341]
[1729616243381,1.5414,2609.8,2609.4,4.5418]
[1729616243583,0.3834,2609.7,2609.4,4.92523]
[1729616244980,1.9335,2609.7,2609.4,4.92523]
[1729616245278,1.5501,2609.7,2609.5,0.38341]
[1729616245973,1.9335,2609.7,2609.4,4.92523]
[1729616247381,1.9335,2609.7,2609.4,3.59123]
[1729616249689,1.5501,2609.7,2609.5,0.38342]
[1729616249884,1.93349,2609.7,2609.4,3.59122]
[1729616250386,3.31349,2609.7,2609.5,1.38]
[1729616251984,2.9301,2609.7,2609.5,1.38]
[1729616252187,3.31349,2609.7,2609.5,1.38]
[1729616252381,1.76341,2609.6,2609.4,3.2078]
[1729616252591,1.76341,2609.6,2609.4,1.38]
[1729616252982,1.38,2609.5,2609.4,1.38]
[1729616253189,1.76342,2609.5,2609.4,1.38]
[1729616253784,1.76342,2609.5,2609.3,1.38]
[1729616253991,4.3858,2609.4,2609.3,1.38]
[1729616254894,3.0058,2609.4,2609.3,1.76345]
[1729616255686,3.0058,2609.4,2609.3,1.38]
[1729616257289,1.4807,2609.4,2609.3,1.76345]
[1729616258185,1.5358,2609.7,2609.3,1.38]
[1729616258386,3.0293,2609.7,2609.6,1.76341]
[1729616258689,3.0293,2609.7,2609.6,1.38]
[1729616258896,4.4093,2609.7,2609.6,1.38]
[1729616259094,4.7927,2609.7,2609.4,4.89062]
[1729616259395,4.4093,2609.7,2609.4,4.5072]
[1729616259590,4.4093,2609.7,2609.4,4.89063]
[1729616259787,4.7927,2609.7,2609.4,4.89063]
[1729616260193,4.7927,2609.7,2609.4,4.5072]
[1729616260395,4.7927,2609.7,2609.6,1.38]
[1729616261395,0.38341,2609.6,2609.5,1.38]
[1729616261592,1.76341,2609.6,2609.5,1.76342]
[1729616262895,0.38341,2609.6,2609.5,1.76342]
[1729616263394,4.79271,2609.7,2609.5,1.76341]
[1729616263592,4.79271,2609.7,2609.6,1.38]
[1729616265297,0.38341,2609.6,2609.5,1.38]
[1729616266298,4.7927,2609.7,2609.6,0.38341]
[1729616266488,4.7927,2609.7,2609.5,1.76342]
[1729616266489,0.38341,2609.6,2609.5,1.76342]
[1729616266692,3.4127,2609.7,2609.6,0.38341]
[1729616266900,3.4127,2609.7,2609.6,1.76341]
[1729616267797,3.4127,2609.7,2609.6,1.38]
[1729616267995,3.0293,2609.7,2609.5,1.76341]
[1729616268193,0.38341,2609.6,2609.5,1.76341]
[1729616269302,1.76341,2609.6,2609.5,1.38]
[1729616269994,1.76341,2609.6,2609.5,1.76342]
[1729616270294,1.76341,2609.6,2609.5,1.38]
[1729616270695,2.25103811,2609.6,2609.5,1.76342]
[1729616270900,2.25103811,2609.6,2609.5,1.38]
[1729616274799,0.38342,2609.5,2609.4,1.38]
[1729616275090,0.87104811,2609.5,2609.4,1.38]
[1729616276599,0.38342,2609.5,2609.4,1.38]
[1729616279900,0.38342,2609.5,2609.3,3.2078]
[1729616279901,3.38412346,2609.5,2609.3,1.38]
[1729616280097,0.38344,2609.4,2609.3,1.38]
[1729616280698,3.0293,2609.7,2609.3,5.212]
[1729616280997,0.38343,2609.5,2609.3,0.38344]
[1729616281900,0.38343,2609.5,2609.3,0.38345]
[1729616282201,0.38344,2609.4,2609.3,1.38]
[1729616282698,0.87147669,2609.4,2609.3,1.38]
[1729616283500,0.38344,2609.4,2609.3,1.38]
[1729616284495,5.3678,2609.7,2609.3,1.38]
[1729616284702,0.38344,2609.4,2609.3,1.38]
[1729616287194,5.3678,2609.7,2609.4,0.38343]
[1729616287195,3.4127,2609.7,2609.4,0.38343]
[1729616287400,0.48805927,2609.6,2609.5,1.4664]
[1729616287600,0.48805927,2609.6,2609.5,4.4019]
[1729616287798,0.87146927,2609.6,2609.5,4.4019]
[1729616288910,0.87146927,2609.6,2609.3,3.40534]
[1729616289101,4.7927,2609.7,2609.5,1.38]
[1729616289300,0.48811691,2609.6,2609.5,1.38]
[1729616289605,0.48811691,2609.6,2609.5,1.76342]
[1729616290120,0.48811691,2609.6,2609.5,1.38]
[1729616290305,0.48811691,2609.6,2609.5,1.76342]
[1729616294306,0.87152691,2609.6,2609.5,1.76342]
[1729616295009,0.87152691,2609.6,2609.5,0.38342]
[1729616295613,0.87152691,2609.6,2609.4,1.76342]
[1729616295912,0.48811691,2609.5,2609.4,1.76342]
[1729616296114,0.48811691,2609.6,2609.5,0.38342]
[1729616296304,0.48822843,2609.6,2609.5,1.76342]
[1729616296813,0.87163843,2609.6,2609.5,1.76342]
[1729616297308,0.48822843,2609.6,2609.5,1.76342]
[1729616300918,0.87163843,2609.6,2609.5,1.76342]
[1729616301614,0.87163843,2609.6,2609.5,1.38]
[1729616302116,0.87163843,2609.6,2609.4,1.76342]
[1729616302308,0.48822843,2609.5,2609.4,1.76342]
[1729616305420,0.87164843,2609.5,2609.4,1.38]
[1729616305622,0.48822843,2609.5,2609.4,1.76344]
[1729616306019,0.38342,2609.5,2609.4,1.76344]
[1729616306322,0.87164843,2609.5,2609.4,1.38]
[1729616309822,0.48822843,2609.5,2609.4,1.38]
[1729616310020,0.38342,2609.5,2609.4,1.38]
[1729616310223,0.87164843,2609.5,2609.4,1.38]
[1729616310923,0.48822843,2609.5,2609.4,1.38]
[1729616311121,0.38342,2609.5,2609.4,1.38]
[1729616311321,0.48822843,2609.5,2609.4,1.76342]
[1729616312020,0.48822843,2609.6,2609.4,1.38]
[1729616312228,3.4127,2609.7,2609.6,1.38]
[1729616312429,0.48841544,2609.7,2609.6,1.76341]
[1729616312727,1.5971,2610.2,2610.1,0.38333]
[1729616312917,1.5971,2610.2,2610.1,3.08033]
[1729616314028,4.3571,2610.2,2609.6,1.00631211]
[1729616314329,1.38,2609.7,2609.5,1.38]
[1729616314514,2.9708,2609.6,2609.5,1.38]
[1729616315121,4.73421,2609.6,2609.4,2.696]
[1729616315627,0.38345,2609.4,2609.0,0.38348]
[1729616315823,1.38,2609.5,2609.0,1.38]
[1729616315824,1.38,2609.2,2609.0,1.38]
[1729616316025,3.2078,2609.5,2609.0,1.38]
[1729616316026,1.4897,2609.1,2609.0,0.38349]
[1729616316224,1.4897,2609.1,2609.0,1.76349]
[1729616317822,1.4695,2609.3,2609.1,0.38347]
[1729616318120,2.9495,2609.3,2609.2,1.38]
[1729616319833,3.33295,2609.3,2609.2,1.38]
[1729616320230,2.9495,2609.3,2609.1,0.38348]
[1729616320531,2.9495,2609.3,2609.2,1.38]
[1729616322025,2.9495,2609.3,2609.2,1.76347]
[1729616322331,3.2078,2609.5,2609.2,1.38]
[1729616322525,3.2078,2609.5,2609.4,1.38]
[1729616323230,3.2078,2609.5,2609.4,1.76344]
[1729616323430,3.2078,2609.5,2609.4,1.38]
[1729616323832,3.2078,2609.5,2609.4,1.76344]
[1729616325937,4.5632,2609.6,2609.5,0.38342]
[1729616326133,3.0807,2609.6,2609.5,1.76342]
[1729616330628,3.0807,2609.6,2609.5,1.38]
[1729616330836,3.46411,2609.6,2609.5,1.38]
[1729616331041,3.0807,2609.6,2609.5,1.38]
[1729616331525,3.0807,2609.6,2609.5,1.76342]
[1729616331837,4.16609,2610.3,2609.5,10.1035]
[1729616331838,1.5495,2609.9,2609.5,10.1035]
[1729616332040,3.0317,2610.2,2609.9,0.38335]
[1729616332334,4.5812,2610.2,2610.1,1.38]
[1729616332540,6.8211277,2610.2,2610.1,1.38]
[1729616332838,6.8211277,2610.2,2610.0,1.38]
[1729616332839,0.38333,2610.1,2610.0,1.38]
[1729616333039,0.8599377,2610.1,2610.0,1.38]
[1729616335436,0.85979246,2610.1,2610.0,1.38]
[1729616335638,0.85979287,2610.1,2610.0,1.38]
[1729616336036,6.34452,2610.2,2610.0,1.38]
[1729616336638,4.96452,2610.2,2610.1,1.38]
[1729616336840,4.96452,2610.2,2610.0,0.38334]
[1729616336841,5.9612,2610.2,2610.0,1.38]
[1729616337036,0.38334,2610.1,2610.0,1.38]
[1729616337443,1.38,2610.1,2609.9,1.38]
[1729616337641,8.419,2610.0,2609.3,1.31]
[1729616337844,1.38,2609.9,2609.7,1.38]
[1729616338040,5.948,2609.8,2609.6,1.7634]
[1729616338236,0.38341,2609.6,2609.4,0.38343]
[1729616338542,1.7634,2609.7,2609.5,1.38]
[1729616340635,0.38342,2609.5,2609.3,1.69344]
[1729616340833,2.933,2609.4,2609.3,1.69344]
[1729616341033,2.933,2609.4,2609.3,1.38]
[1729616341439,3.31644,2609.4,2609.3,1.38]
[1729616341835,0.38347,2609.2,2609.1,3.2078]
[1729616343642,0.38347,2609.2,2609.1,4.5878]
[1729616346146,0.38348,2609.1,2608.9,1.69351]
[1729616346348,0.38349,2609.1,2609.0,1.38]
[1729616348144,0.38349,2609.1,2608.9,1.69351]
[1729616348350,1.5745,2609.0,2608.9,1.69351]
[1729616348644,1.5745,2609.0,2608.9,2.69]
[1729616348843,3.0268,2609.0,2608.9,2.69]
[1729616350048,3.41029,2609.0,2608.9,2.69]
[1729616350847,0.38352,2608.9,2608.8,1.38]
[1729616351045,1.95301,2608.9,2608.8,1.38]
[1729616352852,1.5695,2608.9,2608.8,1.38]
[1729616353047,1.95301,2608.9,2608.8,1.38]
[1729616353455,1.5695,2608.9,2608.8,1.38]
[1729616354053,1.5695,2608.9,2608.8,1.76352]
[1729616354445,3.2078,2609.4,2609.3,0.38345]
[1729616354655,0.95847,2609.8,2609.4,0.38344]
[1729616354656,1.4556,2609.5,2609.4,0.38344]
[1729616354853,1.4556,2609.5,2609.4,3.30944]
[1729616355548,3.59118,2609.8,2609.6,0.38341]
[1729616355549,4.5878,2609.8,2609.6,0.38341]
[1729616355856,3.2078,2609.8,2609.7,1.38]
[1729616356051,4.5878,2609.8,2609.6,1.38]
[1729616356257,1.7634,2609.7,2609.6,1.38]
[1729616356954,4.97118,2609.8,2609.6,1.38]
[1729616357157,3.2078,2609.8,2609.7,1.38]
[1729616357361,1.76337,2609.9,2609.7,1.76338]
[1729616357668,1.38,2609.9,2609.8,0.38338]
[1729616358257,1.38,2609.9,2609.7,1.38]
[1729616358654,1.38,2609.9,2609.8,0.38338]
[1729616359750,3.36545,2610.0,2609.8,0.38338]
[1729616359955,1.38,2609.9,2609.8,1.76338]
[1729616360354,1.38,2609.9,2609.7,1.76338]
[1729616360559,1.76336,2609.9,2609.7,1.76338]
[1729616361055,1.38,2609.9,2609.7,1.38]
[1729616361254,1.38,2609.9,2609.8,0.38338]
[1729616361454,4.74546,2610.0,2609.8,1.76338]
[1729616362464,1.76337,2609.9,2609.7,1.76338]
[1729616362661,1.38,2609.8,2609.6,1.38]
[1729616363155,1.38,2609.8,2609.7,0.38339]
[1729616363355,1.38,2609.8,2609.6,1.7634]
[1729616363857,1.76338,2609.8,2609.6,1.7634]
[1729616364852,1.76338,2609.8,2609.6,1.38]
[1729616367559,1.76337,2609.9,2609.7,1.38]
[1729616367764,0.38338,2609.8,2609.7,1.38]
[1729616368757,1.76338,2609.8,2609.6,1.38]
[1729616369353,0.38339,2609.7,2609.6,1.38]
[1729616369659,1.76338,2609.8,2609.6,1.38]
[1729616370460,0.38338,2609.8,2609.7,1.38]
[1729616371056,1.38,2609.8,2609.6,1.38]
[1729616371261,0.38338,2609.8,2609.7,1.38]
[1729616371563,2.9821,2610.0,2609.7,1.38]
[1729616371755,4.5878,2610.1,2609.8,1.76337]
[1729616371955,4.97114,2610.1,2609.9,3.0703]
[1729616372459,4.97114,2610.1,2609.9,3.45366]
[1729616373359,0.38337,2609.9,2609.7,3.26108]
[1729616373572,1.38,2609.9,2609.7,2.8777]
[1729616373857,0.38338,2609.8,2609.7,3.26109]
[1729616374060,0.38338,2609.8,2609.7,2.8777]
[1729616374663,1.38,2609.9,2609.7,2.8777]
[1729616374863,0.38338,2609.8,2609.7,2.8777]
[1729616378565,1.76337,2609.9,2609.7,3.26109]
[1729616378766,1.76337,2609.9,2609.8,1.38]
[1729616378961,0.38337,2609.9,2609.8,1.38]
[1729616379757,2.8866,2610.0,2609.8,1.38]
[1729616379963,0.38336,2609.9,2609.8,1.38]
[1729616380471,1.76336,2609.9,2609.7,3.26109]
[1729616380672,3.2078,2610.1,2609.8,1.38]
[1729616380878,3.2078,2610.1,2609.7,1.4977]
[1729616380879,3.59114,2610.1,2610.0,1.38]
[1729616381173,5.06409822,2610.1,2609.9,1.38]
[1729616381470,0.47629822,2610.0,2609.9,1.38]
[1729616381963,0.85964822,2610.0,2609.9,1.38]
[1729616382170,0.38337,2609.9,2609.8,1.38]
[1729616382365,2.23966822,2609.9,2609.7,1.38]
[1729616382667,3.86007822,2609.8,2609.7,1.38]
[1729616383065,4.85669822,2609.8,2609.6,4.199]
[1729616383261,0.38343,2609.5,2609.4,1.38]
[1729616383773,0.47629822,2609.5,2609.4,1.38]
[1729616384373,0.85971822,2609.5,2609.4,1.38]
[1729616387472,2.23971822,2609.5,2609.4,1.38]
[1729616388577,2.23971822,2609.5,2609.1,3.2078]
[1729616388578,0.38347,2609.2,2609.1,3.2078]
[1729616388878,0.38347,2609.2,2609.1,1.38]
[1729616388879,1.76347,2609.2,2609.1,1.38]
[1729616389071,0.85976822,2609.2,2609.1,1.38]
[1729616389271,0.38347,2609.2,2609.1,1.38]
[1729616392375,1.76347,2609.2,2609.1,1.38]
[1729616395985,0.38347,2609.2,2609.1,1.38]
[1729616396485,1.76347,2609.2,2609.1,1.38]
[1729616397776,2.893,2609.3,2609.1,1.38]
[1729616397980,3.27645,2609.3,2609.2,1.38]
[1729616398185,3.75268227,2609.3,2609.2,1.38]
[1729616398684,7.58548227,2609.3,2609.2,1.38]
[1729616399382,3.75268227,2609.3,2609.2,1.38]
[1729616400283,0.38339,2609.7,2609.6,0.3834]
[1729616400591,0.47648365,2609.7,2609.6,1.76341]
[1729616400782,1.38,2609.7,2609.6,1.76341]
[1729616401083,1.5333,2610.1,2610.0,0.38335]
[1729616401277,3.5911,2610.4,2610.0,1.38]
[1729616401278,1.76331,2610.3,2610.0,1.38]
[1729616401486,1.76331,2610.3,2610.2,1.38]
[1729616401487,1.38,2610.3,2610.2,1.38]
[1729616401688,0.38332,2610.2,2610.1,3.29223]
[1729616401878,2.24019889,2610.2,2610.1,3.29223]
[1729616402077,1.85687889,2610.2,2610.1,3.29223]
[1729616402479,2.24019889,2610.2,2610.1,3.29223]
[1729616402694,2.24019889,2610.2,2609.5,3.2078]
[1729616402695,7.06807889,2610.2,2609.5,3.2078]
[1729616402891,6.2141,2610.1,2609.6,1.6012]
[1729616403189,6.2141,2610.1,2609.2,3.2078]
[1729616403190,0.38343,2609.5,2609.3,4.66264]
[1729616403886,0.38343,2609.5,2609.4,1.38]
[1729616404389,4.76972,2609.6,2609.4,1.76343]
[1729616404687,3.0063,2609.6,2609.5,1.38]
[1729616404883,3.0063,2609.6,2609.5,1.76342]
[1729616405384,3.2078,2609.8,2609.7,0.38339]
[1729616405586,3.2078,2609.8,2609.7,1.76339]
[1729616406085,3.2078,2609.8,2609.7,3.22369]
[1729616406389,3.2078,2609.8,2609.7,1.84369]
[1729616409192,3.2078,2609.8,2609.7,1.4603]
[1729616409394,3.2078,2609.8,2609.7,1.84369]
[1729616409588,3.2078,2609.8,2609.7,1.4603]
[1729616410789,3.59118,2609.8,2609.7,1.4603]
[1729616412795,3.1181,2610.1,2609.7,1.4603]
[1729616412991,3.1181,2610.1,2609.8,0.38337]
[1729616413198,3.1181,2610.1,2609.7,2.9948]
[1729616413394,3.1181,2610.1,2609.8,0.38338]
[1729616413584,3.1181,2610.1,2609.7,2.9948]
[1729616413585,0.38336,2610.0,2609.7,2.9948]
[1729616413790,0.38336,2610.0,2609.8,0.38338]
[1729616413985,0.38336,2610.0,2609.7,2.9948]
[1729616414195,3.50145,2610.1,2609.9,0.38336]
[1729616414393,3.50144,2610.1,2609.9,0.38336]
[1729616414596,0.38335,2610.0,2609.9,0.38336]
[1729616414900,0.38337,2609.9,2609.8,0.38337]
[1729616415198,0.38336,2609.9,2609.7,2.9948]
[1729616415389,0.38338,2609.8,2609.7,1.4603]
[1729616415896,0.95839,2610.0,2609.5,1.298]
[1729616416099,3.4023,2609.7,2609.5,1.68142]
[1729616416398,3.4023,2609.7,2609.5,1.298]
[1729616416798,0.38341,2609.6,2609.5,1.298]
[1729616417895,0.38342,2609.5,2609.4,2.8933]
[1729616418192,0.38342,2609.5,2609.4,1.5953]
[1729616418709,0.86028086,2609.5,2609.4,1.5953]
[1729616420097,0.47686086,2609.5,2609.4,1.5953]
[1729616420399,0.86028086,2609.5,2609.4,1.5953]
[1729616420590,0.47686086,2609.5,2609.4,1.5953]
[1729616420791,0.86028086,2609.5,2609.4,1.5953]
[1729616421900,0.47686086,2609.5,2609.4,1.5953]
[1729616422202,0.86028086,2609.5,2609.4,1.5953]
[1729616423191,0.47686086,2609.5,2609.4,1.5953]
[1729616423391,0.86028086,2609.5,2609.4,1.5953]
[1729616424505,0.86028086,2609.5,2609.2,3.1275]
[1729616424506,0.47686086,2609.5,2609.2,0.38346]
[1729616424799,1.95216086,2609.4,2609.2,0.38346]
[1729616425007,0.47686086,2609.3,2609.2,0.38346]
[1729616425205,3.98181086,2609.3,2609.2,3.8328]
[1729616425397,3.59836086,2609.3,2609.2,3.8328]
[1729616425802,3.98181086,2609.3,2609.2,3.8328]
[1729616426499,3.1215,2609.3,2609.2,3.8328]
[1729616427202,3.1215,2609.3,2609.1,1.68147]
[1729616427800,3.1215,2609.3,2609.1,4.67147]
[1729616428003,3.1215,2609.3,2609.1,6.8228]
[1729616428507,3.1215,2609.3,2609.1,3.37347]
[1729616428692,3.1215,2609.3,2609.1,7.20627]
[1729616429002,3.1215,2609.3,2609.1,3.37347]
[1729616429592,3.50496,2609.3,2609.1,3.37347]
[1729616429803,3.50496,2609.3,2609.1,2.99]
[1729616430000,3.1215,2609.3,2609.1,3.37347]
[1729616430204,3.50496,2609.3,2609.1,3.37348]
[1729616430404,3.1215,2609.3,2609.1,6.8228]
[1729616430604,3.1215,2609.3,2609.1,7.20627]
[1729616430997,3.50495,2609.3,2609.1,7.20627]
[1729616431198,3.50495,2609.3,2609.1,3.37347]
[1729616431399,3.1215,2609.3,2609.1,3.37347]
[1729616431597,3.1215,2609.3,2609.1,7.20627]
[1729616431807,3.50495,2609.3,2609.1,3.37347]
[1729616432007,3.1215,2609.3,2609.1,6.8228]
[1729616432213,3.1215,2609.3,2609.1,2.99]
[1729616432509,3.1215,2609.3,2609.2,1.38]
[1729616433004,3.1215,2609.3,2609.2,5.59627]
[1729616434402,3.2078,2609.6,2609.2,5.2128]
[1729616434605,3.2078,2610.1,2609.5,5.9678]
[1729616434808,8.2379,2610.4,2610.1,0.38333]
[1729616435000,7.8546,2610.4,2610.3,1.38]
[1729616435196,6.79191069,2610.4,2610.3,1.7633]
[1729616435397,6.3151,2610.4,2610.3,1.7633]
[1729616435597,4.7118,2610.4,2610.3,1.7633]
[1729616436497,4.7118,2610.4,2610.3,0.3833]
[1729616438303,4.7118,2610.4,2610.2,0.3833]
[1729616438498,4.7118,2610.4,2610.1,4.5099]
[1729616438701,4.7118,2610.4,2610.2,0.38332]
[1729616439098,4.7118,2610.4,2610.3,0.3833]
[1729616439907,3.2078,2610.4,2610.3,0.3833]
[1729616441113,5.19703,2610.8,2610.5,0.38326]
[1729616441298,4.8138,2610.8,2610.4,1.94568]
[1729616441502,5.19704,2610.8,2610.5,0.38327]
[1729616441906,4.8138,2610.8,2610.6,0.38325]
[1729616442105,3.2078,2610.8,2610.5,2.99]
[1729616442413,3.2078,2610.8,2610.7,3.37324]
[1729616442711,3.2078,2610.8,2610.7,4.66524]
[1729616443704,3.2078,2610.8,2610.7,8.49564]
[1729616444103,3.2078,2610.8,2610.7,8.1124]
[1729616444407,3.2078,2610.8,2610.7,5.50564]
[1729616445014,0.38326,2610.6,2610.5,1.292]
[1729616445709,1.4649,2610.6,2610.0,1.4675]
[1729616445911,1.5028,2610.5,2610.2,1.292]
[1729616446107,0.3833,2610.3,2610.2,1.292]
[1729616447009,1.5028,2610.5,2610.2,1.292]
[1729616447408,0.3833,2610.4,2610.2,1.292]
[1729616447603,0.3833,2610.4,2610.1,1.67533]
[1729616448010,1.88608,2610.5,2610.2,0.38331]
[1729616448407,1.88608,2610.5,2610.3,0.3833]
[1729616448613,1.88608,2610.5,2610.1,4.282]
[1729616448614,1.4649,2610.6,2610.1,4.282]
[1729616448911,1.4649,2610.6,2610.4,0.38329]
[1729616449208,1.84816,2610.6,2610.4,0.38329]
[1729616449615,1.4649,2610.6,2610.4,0.38329]
[1729616450110,1.4649,2610.6,2610.2,3.59111]
[1729616450111,0.38329,2610.4,2610.2,3.59111]
[1729616450311,0.38328,2610.5,2610.2,0.38331]
[1729616450611,0.38327,2610.5,2610.2,0.38331]
[1729616450804,0.47562134,2610.4,2610.2,0.38331]
[1729616451014,0.47562134,2610.3,2610.2,0.38331]
[1729616451513,1.4649,2610.6,2610.2,3.8312]
[1729616451718,1.4649,2610.6,2610.5,3.37327]
[1729616451913,1.94050861,2610.6,2610.5,2.99]
[1729616452309,1.4649,2610.6,2610.5,2.99]
[1729616453114,1.4649,2610.6,2610.5,3.37327]
[1729616453322,1.94042723,2610.6,2610.5,2.99]
[1729616453923,1.94042723,2610.6,2610.4,0.38328]
[1729616454221,1.94042723,2610.6,2610.3,1.292]
[1729616454222,0.47552723,2610.5,2610.3,1.292]
[1729616454412,0.47552723,2610.4,2610.3,1.292]
[1729616455211,0.47552723,2610.4,2610.3,1.6753]